Workbook

Sheet Retirement
A1: Financial Goal planner with variable asset allocation
A2: Current monthly expenses that will persist in retirement | B2: 25000
A3: Annual expenses that will persist in retirement | B3: 25000
A4: Total average monthly expenses (annual/12) | B4: =((12*B2)+B3)/12 -> 27083.33333
A5: Inflation before retirement (%) | B5: 8
A6: Current age | B6: 35
A7: Age you wish to retire | B7: 60
A8: No of years you expect to live! | B8: 80
A9: Years to retirement | B9: =B7-B6 -> 25
A10: Monthly expenses in first year of retirement | B10: =B4*(1+B5/100)^B9 -> 185479.5366
A11: Years in retirement | B11: =B8-B7 -> 20
A12: Inflation during retirement (%) | B12: 8
A13: Post-tax average return from retirement corpus (%) | B13: 8
A14: For now set it to a low number
A15: Total Corpus required | B15: =PV((1+((B13/100)))/(1+(B12/100))-1,B11,-12*B10,,1) -> 44515088.78
A16: Post-tax return (used for current and future investments)
A17: Post-tax return expected from equity investments % | B17: 14
A18: Post-rax return expected from current taxable fixed income % | B18: 6 | C18: (FD, debt fund etc.)
A19: Rate of return expected from current tax-free fixed income % | B19: 8 | C19: (EPF+PPF+LIC)
A20: Present Value of investments | C20: Future Value
A21: Value of current equity invesments | B21: 100000 | C21: =(B21*(1+B17/100)^Retirement!$B$9) -> 2646191.581
A22: Value of current taxable fixed income investments | B22: 300000 | C22: =(B22*(1+B18/100)^Retirement!$B$9) -> 1287561.216
A23: Value of current tax-free fixed income investments | B23: 300000 | C23: =(B23*(1+B19/100)^Retirement!$B$9) -> 2054542.559
A24: Lump sum benefits expected at retirement | B24: 500000 | C24: =B24 -> 500000
A25: Current monthly mandatory EPF contribution (employer+employee) | B25: 8000 | C25: =(12*B25*((1+B27%+0.000001%)^B9-(1+B26%)^B9)/(0.000001%+B27%-B26%)) -> 11078786.2 | D25: (approx)
A26: Annual increase in this contribution (be realistic) % | B26: 5
A27: Expected rate of return for EPF or NPS % | B27: 8
A28: Net Corpus to be accumulated | B28: =Retirement!B15-SUM(C21:C25) -> 26948007.22

Sheet Other goals
A1: Enter name of the goal for your reference | B1: Daughters education | D1: Sons education | F1: Daughters marriage | H1: Sons marriage | J1: Goal 5 | AA1: equity investing stops | AB1: 0 | AD1: 0 | AF1: 0 | AH1: 0 | AJ1: 0
A2: Years to goal (has to be before retirement)* | B2: 16 | D2: 12 | F2: 16 | H2: 20 | J2: 22 | AA2: max equity investing years | AB2: =B2-AB1 -> 16 | AD2: =D2-AD1 -> 12 | AF2: =F2-AF1 -> 16 | AH2: =H2-AH1 -> 20 | AJ2: =J2-AJ1 -> 22
A3: Present cost | B3: 2500000 | D3: 2500000 | F3: 1000000 | H3: 1000000 | J3: 2000000 | AA3: * that is less than | AB3: 25 | AD3: years
A4: inflation | B4: 0.1 | D4: 0.1 | F4: 0.1 | H4: 0.1 | J4: 0.1 | AB4: =IF(B2>=AB3,1,IF(D2>=AB3,1,IF(F2>=AB3,1,IF(H2>=AB3,1,IF(J2>=AB3,1,0))))) -> 0
A5: Post-tax return from equity instruments expected | B5: 0.12 | D5: 0.12 | F5: 0.12 | H5: 0.12 | J5: 0.12
A6: Return from tax-free fixed income instr. expected | B6: 0.07 | D6: 0.07 | F6: 0.07 | H6: 0.07 | J6: 0.07
A7: Post-tax return from taxable fixed income expected | B7: 0.07 | D7: 0.07 | F7: 0.07 | H7: 0.07 | J7: 0.07
A8: Equity allocation | B8: 0.6 | D8: 0.6 | F8: 0.6 | H8: 0.6 | J8: 0.6
A9: tax-free fixed income | B9: 0.2 | D9: 0.2 | F9: 0.2 | H9: 0.2 | J9: 0.2
A10: taxable fixed income | B10: =1-B8-B9 -> 0.2 | D10: =1-D8-D9 -> 0.2 | F10: =1-F8-F9 -> 0.2 | H10: =1-H8-H9 -> 0.2 | J10: =1-J8-J9 -> 0.2
A11: Net rate of return (post-tax) | B11: =(B5*B8)+(B6*B9)+(B7*B10) -> 0.1 | D11: =(D5*D8)+(D6*D9)+(D7*D10) -> 0.1 | F11: =(F5*F8)+(F6*F9)+(F7*F10) -> 0.1 | H11: =(H5*H8)+(H6*H9)+(H7*H10) -> 0.1 | J11: =(J5*J8)+(J6*J9)+(J7*J10) -> 0.1
A12: Amt invested so far in equity instruments | B12: 100000 | D12: 100000 | F12: 100000 | H12: 100000 | J12: 100000
A13: Amt invested so far in tax free fixed income instr. | B13: 100000 | D13: 100000 | F13: 100000 | H13: 100000 | J13: 100000
A14: Amt invested so far in taxable fixed income instr. | B14: 100000 | D14: 100000 | F14: 100000 | H14: 100000 | J14: 100000
A15: Future value of curr. Inv. | B15: =B12*(1+B5)^ygoal1+B13*(1+B6)^ygoal1++B14*(1+B7)^ygoal1 -> 1203472.115 | D15: =D12*(1+D5)^ygoal2+D13*(1+D6)^ygoal2++D14*(1+D7)^ygoal2 -> 840035.917 | F15: =F12*(1+F5)^ygoal3+F13*(1+F6)^ygoal3++F14*(1+F7)^ygoal3 -> 1203472.115 | H15: =H12*(1+H5)^ygoal4+H13*(1+H6)^ygoal4++H14*(1+H7)^ygoal4 -> 1738566.202 | J15: =J12*(1+J5)^ygoal5+J13*(1+J6)^ygoal5++J14*(1+J7)^ygoal5 -> 2096111.354
A16: Future Cost | B16: =B3*(1+B4)^AB2-B15 -> 10283960.35 | D16: =D3*(1+D4)^AD2-D15 -> 7006035.025 | F16: =F3*(1+F4)^AF2-F15 -> 3391500.872 | H16: =H3*(1+H4)^AH2-H15 -> 4988933.748 | J16: =J3*(1+J4)^AJ2-J15 -> 14184438.52
A17: =CONCATENATE(AA3,AB3,AD3) -> * that is less than 25 years

Sheet variable asset allocation
A1: Use this sheet if you wish | F1: Year of investment | G1: Equity allocation | H1: Taxable fixed income | I1: Tax free Fixed income allocation | J1: Return from equity | K1: Post-tax Return from Taxable fixed income | L1: Return from Tax free fixed income | M1: Net portfolio return | N1: Monthly investment required | O1: Year end Corpus value | Q1: =IF(INDEX($T$1:$V$6,MATCH($C$6,$T$1:$T$6,0),3)<0,0,INDEX($T$1:$V$6,MATCH($C$6,$T$1:$T$6,0),3)) -> 14184438.52 | T1: Retirement | U1: =Retirement!B9 -> 25 | V1: =Retirement!B28 -> 26948007.22
A2: to change the asset allocation with age | F2: 1 | G2: 0.7 | H2: 0.2 | I2: =1-G2-H2 -> 0.1 | J2: 0.12 | K2: 0.07 | L2: 0.06 | M2: =IF(F2="","",(G2*J2)+(H2*K2)+(I2*L2)) -> 0.104 | N2: 7865.148835 | O2: =N2*12*(1+M2) -> 104197.4918 | Q2: =COUNT(O2:O60)+1 -> 23 | T2: ='Other goals'!B1 -> Daughters education | U2: =ygoal1 -> 16 | V2: =goal1 -> 10283960.35
A3: Fill green cells and the click | F3: =IF(F2>=INDEX($T$1:$V$6,MATCH($C$6,$T$1:$T$6,0),2),"",F2+1) -> 2 | G3: 0.7 | H3: 0.2 | I3: =1-G3-H3 -> 0.1 | J3: 0.12 | K3: 0.07 | L3: 0.06 | M3: =IF(F3="","",(G3*J3)+(H3*K3)+(I3*L3)) -> 0.104 | N3: =IF(F3="","",N2*(1+$D$9)) -> 8651.663719 | O3: =IF(F3="","",(12*N3+O2)*(1+M3)) -> 229651.2719 | T3: ='Other goals'!D1 -> Sons education | U3: =ygoal2 -> 12 | V3: =goal2 -> 7006035.025
A4: the button below | F4: =IF(F3>=INDEX($T$1:$V$6,MATCH($C$6,$T$1:$T$6,0),2),"",F3+1) -> 3 | G4: 0.7 | H4: 0.2 | I4: 0.1 | J4: 0.12 | K4: 0.07 | L4: 0.06 | M4: 0.104 | N4: 9516.830091 | O4: 379613.9692 | T4: ='Other goals'!F1 -> Daughters marriage | U4: =ygoal3 -> 16 | V4: =goal3 -> 3391500.872
F5: 4 | G5: 0.7 | H5: 0.2 | I5: 0.1 | J5: 0.12 | K5: 0.07 | L5: 0.06 | M5: 0.104 | N5: 10468.5131 | O5: 557780.6835 | T5: ='Other goals'!H1 -> Sons marriage | U5: =ygoal4 -> 20 | V5: =goal4 -> 4988933.748
A6: Choose Goal | C6: Goal 5 | F6: 5 | G6: 0.7 | H6: 0.2 | I6: 0.1 | J6: 0.12 | K6: 0.07 | L6: 0.06 | M6: 0.104 | N6: 11515.36441 | O6: 768345.4223 | T6: ='Other goals'!J1 -> Goal 5 | U6: =ygoal5 -> 22 | V6: =goal5 -> 14184438.52
F7: 6 | G7: 0.7 | H7: 0.2 | I7: 0.1 | J7: 0.12 | K7: 0.07 | L7: 0.06 | M7: 0.104 | N7: 12666.90085 | O7: 1016064.449
A8: Annual increase in total monthly investment % | F8: 7 | G8: 0.7 | H8: 0.2 | I8: 0.1 | J8: 0.12 | K8: 0.07 | L8: 0.06 | M8: 0.104 | N8: 13933.59094 | O8: 1306327.364
D9: 0.1 | F9: 8 | G9: 0.7 | H9: 0.2 | I9: 0.1 | J9: 0.12 | K9: 0.07 | L9: 0.06 | M9: 0.104 | N9: 15326.95003 | O9: 1645236.844
F10: 9 | G10: 0.7 | H10: 0.2 | I10: 0.1 | J10: 0.12 | K10: 0.07 | L10: 0.06 | M10: 0.104 | N10: 16859.64503 | O10: 2039698.053
F11: 10 | G11: 0.7 | H11: 0.2 | I11: 0.1 | J11: 0.12 | K11: 0.07 | L11: 0.06 | M11: 0.104 | N11: 18545.60954 | O11: 2497518.886
F12: 11 | G12: 0.6 | H12: 0.2 | I12: 0.2 | J12: 0.1 | K12: 0.07 | L12: 0.06 | M12: 0.086 | N12: 20400.17049 | O12: 2978160.532
F13: 12 | G13: 0.6 | H13: 0.2 | I13: 0.2 | J13: 0.1 | K13: 0.07 | L13: 0.06 | M13: 0.086 | N13: 22440.18754 | O13: 3526722.861
F14: 13 | G14: 0.6 | H14: 0.2 | I14: 0.2 | J14: 0.1 | K14: 0.07 | L14: 0.06 | M14: 0.086 | N14: 24684.20629 | O14: 4151705.604
F15: 14 | G15: 0.6 | H15: 0.2 | I15: 0.2 | J15: 0.1 | K15: 0.07 | L15: 0.06 | M15: 0.086 | N15: 27152.62692 | O15: 4862605.32
F16: 15 | G16: 0.6 | H16: 0.2 | I16: 0.2 | J16: 0.1 | K16: 0.07 | L16: 0.06 | M16: 0.086 | N16: 29867.88961 | O16: 5670027.715
A17: Initial monthly investment required | F17: 16 | G17: 0.6 | H17: 0.2 | I17: 0.2 | J17: 0.1 | K17: 0.07 | L17: 0.06 | M17: 0.086 | N17: 32854.67857 | O17: 6585812.269
D18: =N2 -> 7865.148835 | F18: 17 | G18: 0.5 | H18: 0.2 | I18: 0.3 | J18: 0.08 | K18: 0.07 | L18: 0.06 | M18: 0.072 | N18: 36140.14643 | O18: 7524897.597
A19: Final Corpus | D19: =MAX(O2:O49) -> 14184438.52 | F19: 18 | G19: 0.5 | H19: 0.2 | I19: 0.3 | J19: 0.08 | K19: 0.07 | L19: 0.06 | M19: 0.072 | N19: 39754.16107 | O19: 8578087.752
F20: 19 | G20: 0.5 | H20: 0.2 | I20: 0.3 | J20: 0.08 | K20: 0.07 | L20: 0.06 | M20: 0.072 | N20: 43729.57718 | O20: 9758247.35
F21: 20 | G21: 0.5 | H21: 0.2 | I21: 0.3 | J21: 0.08 | K21: 0.07 | L21: 0.06 | M21: 0.072 | N21: 48102.5349 | O21: 11079632.17
F22: 21 | G22: 0.5 | H22: 0.2 | I22: 0.3 | J22: 0.08 | K22: 0.07 | L22: 0.06 | M22: 0.072 | N22: 52912.78839 | O22: 12558035.79
F23: 22 | G23: 0.4 | H23: 0.2 | I23: 0.4 | J23: 0.08 | K23: 0.07 | L23: 0.06 | M23: 0.07 | N23: 58204.06723 | O23: 14184438.52
G24: 0.4 | H24: 0.2 | I24: 0.4 | J24: 0.08 | K24: 0.07 | L24: 0.06
G25: 0.4 | H25: 0.2 | I25: 0.4 | J25: 0.08 | K25: 0.07 | L25: 0.06
G26: 0.4 | H26: 0.2 | I26: 0.4 | J26: 0.08 | K26: 0.07 | L26: 0.06
G27: 0.4 | H27: 0.2 | I27: 0.4 | J27: 0.08 | K27: 0.07 | L27: 0.06
G28: 0.4 | H28: 0.2 | I28: 0.4 | J28: 0.08 | K28: 0.07 | L28: 0.06
G29: 0.4 | H29: 0.2 | I29: 0.4 | J29: 0.08 | K29: 0.07 | L29: 0.06
G30: 0.4 | H30: 0.2 | I30: 0.4 | J30: 0.08 | K30: 0.07 | L30: 0.06
G31: 0.4 | H31: 0.2 | I31: 0.4 | J31: 0.08 | K31: 0.07 | L31: 0.06
G32: 0.4 | H32: 0.2 | I32: 0.4 | J32: 0.08 | K32: 0.07 | L32: 0.06
G33: 0.4 | H33: 0.2 | I33: 0.4 | J33: 0.08 | K33: 0.07 | L33: 0.06
G34: 0.4 | H34: 0.2 | I34: 0.4 | J34: 0.08 | K34: 0.07 | L34: 0.06
G35: 0.4 | H35: 0.2 | I35: 0.4 | J35: 0.08 | K35: 0.07 | L35: 0.06
G36: 0.4 | H36: 0.2 | I36: 0.4 | J36: 0.08 | K36: 0.07 | L36: 0.06
G37: 0.4 | H37: 0.2 | I37: 0.4 | J37: 0.08 | K37: 0.07 | L37: 0.06
G38: 0.4 | H38: 0.2 | I38: 0.4 | J38: 0.08 | K38: 0.07 | L38: 0.06
G39: 0.4 | H39: 0.2 | I39: 0.4 | J39: 0.08 | K39: 0.07 | L39: 0.06
G40: 0.4 | H40: 0.2 | I40: 0.4 | J40: 0.08 | K40: 0.07 | L40: 0.06
G41: 0.4 | H41: 0.2 | I41: 0.4 | J41: 0.08 | K41: 0.07 | L41: 0.06
G42: 0.4 | H42: 0.2 | I42: 0.4 | J42: 0.08 | K42: 0.07 | L42: 0.06
G43: 0.4 | H43: 0.2 | I43: 0.4 | J43: 0.08 | K43: 0.07 | L43: 0.06
G44: 0.4 | H44: 0.2 | I44: 0.4 | J44: 0.08 | K44: 0.07 | L44: 0.06
G45: 0.4 | H45: 0.2 | I45: 0.4 | J45: 0.08 | K45: 0.07 | L45: 0.06
G46: 0.4 | H46: 0.2 | I46: 0.4 | J46: 0.08 | K46: 0.07 | L46: 0.06
G47: 0.4 | H47: 0.2 | I47: 0.4 | J47: 0.08 | K47: 0.07 | L47: 0.06
G48: 0.4 | H48: 0.2 | I48: 0.4 | J48: 0.08 | K48: 0.07 | L48: 0.06
G49: 0.4 | H49: 0.2 | I49: 0.4 | J49: 0.08 | K49: 0.07 | L49: 0.06
G50: 0.4 | H50: 0.2 | I50: 0.4 | J50: 0.08 | K50: 0.07 | L50: 0.06
